[Event "Early-Titled-Tuesday-Blitz-February-27-2024"]
[Site "Chess.com"]
[Date "2024.02.27"]
[Round "3"]
[White "sathvikadiga"]
[Black "newauto"]
[Result "1-0"]
[WhiteElo "2553"]
[BlackElo "2225"]
[TimeControl "180+1"]
[EndTime "8:25:35 PST"]
[Termination "sathvikadiga won by resignation"]

1. d4 {[%clk 0:03:00.9]} 1... d5 {[%clk 0:02:59.6]} 2. Nc3 {[%clk 0:02:59.3]}
2... Nf6 {[%clk 0:02:59.4]} 3. Bf4 {[%clk 0:02:59.9]} 3... c6 {[%clk 0:02:59.1]}
4. e3 {[%clk 0:02:59.3]} 4... Bf5 {[%clk 0:02:59.4]} 5. Nf3 {[%clk 0:02:59.8]}
5... e6 {[%clk 0:02:59.7]} 6. Ne5 {[%clk 0:02:59.9]} 6... Nbd7 {[%clk
0:02:59.6]} 7. Bd3 {[%clk 0:02:59.9]} 7... Be7 {[%clk 0:02:58.3]} 8. Qf3 {[%clk
0:02:57]} 8... O-O {[%clk 0:02:57.4]} 9. g4 {[%clk 0:02:52.4]} 9... Nxe5 {[%clk
0:02:54.5]} 10. dxe5 {[%clk 0:02:48.1]} 10... Nxg4 {[%clk 0:02:35.5]} 11. Bxf5
{[%clk 0:02:40.5]} 11... exf5 {[%clk 0:02:34.7]} 12. h3 {[%clk 0:02:40.5]} 12...
g5 {[%clk 0:02:02.5]} 13. hxg4 {[%clk 0:02:27.8]} 13... gxf4 {[%clk 0:02:01.7]}
14. Qh3 {[%clk 0:02:27.7]} 14... Bh4 {[%clk 0:01:37.4]} 15. exf4 {[%clk
0:02:27.2]} 15... Re8 {[%clk 0:01:33.8]} 16. gxf5 {[%clk 0:02:17.5]} 16... d4
{[%clk 0:01:33.4]} 17. Ne4 {[%clk 0:02:14.4]} 17... Qd5 {[%clk 0:01:32.3]} 18.
Qg2+ {[%clk 0:01:54.4]} 18... Kh8 {[%clk 0:01:17.3]} 19. Rxh4 {[%clk 0:01:51.4]}
19... Rg8 {[%clk 0:01:16.3]} 20. Qh1 {[%clk 0:01:46.6]} 20... Rg1+ {[%clk
0:01:12.7]} 21. Qxg1 {[%clk 0:01:45.8]} 21... Qxe4+ {[%clk 0:01:13.2]} 22. Kd2
{[%clk 0:01:40.7]} 22... d3 {[%clk 0:01:08.2]} 23. Rxh7+ {[%clk 0:01:33.5]}
23... Kxh7 {[%clk 0:01:04.7]} 24. Qh2+ {[%clk 0:01:34.4]} 24... Kg7 {[%clk
0:01:02.9]} 25. Rg1+ {[%clk 0:01:35]} 25... Kf8 {[%clk 0:01:03]} 26. Qh6+ {[%clk
0:01:33.4]} 1-0

[Event "Early-Titled-Tuesday-Blitz-February-27-2024"]
[Site "Chess.com"]
[Date "2024.02.27"]
[Round "3"]
[White "JulbeNn"]
[Black "GMSrinath"]
[Result "0-1"]
[WhiteElo "2553"]
[BlackElo "2803"]
[TimeControl "180+1"]
[EndTime "8:25:41 PST"]
[Termination "GMSrinath won by resignation"]

1. e4 {[%clk 0:03:00.9]} 1... c5 {[%clk 0:03:00.4]} 2. Nc3 {[%clk 0:03:00]} 2...
Nc6 {[%clk 0:02:59.7]} 3. f4 {[%clk 0:03:00.4]} 3... g6 {[%clk 0:02:58.5]} 4.
Nf3 {[%clk 0:03:00.7]} 4... Bg7 {[%clk 0:02:59.2]} 5. Bc4 {[%clk 0:03:01.2]}
5... e6 {[%clk 0:02:56.5]} 6. f5 {[%clk 0:03:01.6]} 6... gxf5 {[%clk 0:02:54.4]}
7. d3 {[%clk 0:03:01.9]} 7... Nge7 {[%clk 0:02:54]} 8. O-O {[%clk 0:03:01.5]}
8... O-O {[%clk 0:02:53.7]} 9. Bg5 {[%clk 0:02:50.1]} 9... f6 {[%clk 0:02:43.9]}
10. Bh4 {[%clk 0:02:17.6]} 10... b6 {[%clk 0:02:42.2]} 11. Bg3 {[%clk
0:01:49.8]} 11... Na5 {[%clk 0:02:32.8]} 12. Nb5 {[%clk 0:01:45]} 12... fxe4
{[%clk 0:02:26.9]} 13. Bc7 {[%clk 0:01:09.9]} 13... Qe8 {[%clk 0:02:24.5]} 14.
Nd6 {[%clk 0:01:09.8]} 14... Qg6 {[%clk 0:02:22.1]} 15. dxe4 {[%clk 0:00:29.6]}
15... Nxc4 {[%clk 0:02:16.5]} 16. Nxc4 {[%clk 0:00:30.5]} 16... Qxe4 {[%clk
0:02:07.1]} 17. Bd6 {[%clk 0:00:25.8]} 17... Qxc4 {[%clk 0:02:02.1]} 18. Bxe7
{[%clk 0:00:25.4]} 18... Re8 {[%clk 0:01:53]} 19. Bd6 {[%clk 0:00:20.3]} 19...
Bb7 {[%clk 0:01:52.8]} 20. Qe1 {[%clk 0:00:15.5]} 20... Bxf3 {[%clk 0:01:48.9]}
21. Rxf3 {[%clk 0:00:15]} 21... Qd4+ {[%clk 0:01:49.5]} 0-1

[Event "Early-Titled-Tuesday-Blitz-February-27-2024"]
[Site "Chess.com"]
[Date "2024.02.27"]
[Round "3"]
[White "Eagle_2019"]
[Black "marcodobrikov"]
[Result "1-0"]
[WhiteElo "2897"]
[BlackElo "2600"]
[TimeControl "180+1"]
[EndTime "8:25:57 PST"]
[Termination "Eagle_2019 won by checkmate"]

1. d4 {[%clk 0:02:58.8]} 1... d6 {[%clk 0:03:00]} 2. Nf3 {[%clk 0:02:57.6]} 2...
Nf6 {[%clk 0:03:00.6]} 3. c4 {[%clk 0:02:56.4]} 3... g6 {[%clk 0:03:01.1]} 4. g3
{[%clk 0:02:55.4]} 4... Bg7 {[%clk 0:03:01.4]} 5. Bg2 {[%clk 0:02:55.4]} 5...
O-O {[%clk 0:03:01.6]} 6. O-O {[%clk 0:02:55.6]} 6... Nbd7 {[%clk 0:03:00.3]} 7.
Nc3 {[%clk 0:02:55.1]} 7... Nb6 {[%clk 0:02:59.9]} 8. b3 {[%clk 0:02:50.9]} 8...
a5 {[%clk 0:02:59.3]} 9. e4 {[%clk 0:02:40.6]} 9... a4 {[%clk 0:02:57.8]} 10.
Be3 {[%clk 0:02:39.9]} 10... axb3 {[%clk 0:02:52.8]} 11. axb3 {[%clk 0:02:39.7]}
11... Rxa1 {[%clk 0:02:53.7]} 12. Qxa1 {[%clk 0:02:40.6]} 12... c5 {[%clk
0:02:53.9]} 13. dxc5 {[%clk 0:02:25.9]} 13... Nxe4 {[%clk 0:02:53.5]} 14. cxb6
{[%clk 0:02:07.6]} 14... Bxc3 {[%clk 0:02:50.5]} 15. Qc1 {[%clk 0:02:00.5]}
15... Ba5 {[%clk 0:02:50.5]} 16. Nd4 {[%clk 0:01:04]} 16... Nf6 {[%clk
0:02:45.9]} 17. Nb5 {[%clk 0:00:16.5]} 17... Bxb6 {[%clk 0:02:44.3]} 18. Bxb6
{[%clk 0:00:17.4]} 18... Qxb6 {[%clk 0:02:43.8]} 19. Re1 {[%clk 0:00:17.3]}
19... Bd7 {[%clk 0:02:39.1]} 20. Rxe7 {[%clk 0:00:15.5]} 20... Bc6 {[%clk
0:02:27.4]} 21. Bxc6 {[%clk 0:00:13.8]} 21... bxc6 {[%clk 0:02:28.3]} 22. Nxd6
{[%clk 0:00:12.1]} 22... Qxb3 {[%clk 0:02:28.4]} 23. Qa1 {[%clk 0:00:10.4]}
23... Qf3 {[%clk 0:02:25.3]} 24. Re3 {[%clk 0:00:08.4]} 24... Qg4 {[%clk
0:02:10.6]} 25. Qxf6 {[%clk 0:00:07.9]} 25... Qd1+ {[%clk 0:02:11.5]} 26. Kg2
{[%clk 0:00:07.9]} 26... h5 {[%clk 0:02:12]} 27. Ne4 {[%clk 0:00:05.8]} 27...
Qc2 {[%clk 0:02:10.4]} 28. Qc3 {[%clk 0:00:05.4]} 28... Qd1 {[%clk 0:02:10.2]}
29. Nf6+ {[%clk 0:00:05.2]} 29... Kh8 {[%clk 0:02:09.6]} 30. Nd7+ {[%clk
0:00:04.9]} 30... Kg8 {[%clk 0:02:08.5]} 31. Nxf8 {[%clk 0:00:05]} 31... Kxf8
{[%clk 0:02:09.4]} 32. Qh8# {[%clk 0:00:04.6]} 1-0

[Event "Early-Titled-Tuesday-Blitz-February-27-2024"]
[Site "Chess.com"]
[Date "2024.02.27"]
[Round "3"]
[White "arnash_bauyrzhan"]
[Black "azikom"]
[Result "0-1"]
[WhiteElo "2305"]
[BlackElo "2617"]
[TimeControl "180+1"]
[EndTime "8:25:58 PST"]
[Termination "azikom won by resignation"]

1. e4 {[%clk 0:03:00.9]} 1... c5 {[%clk 0:03:00.9]} 2. Nf3 {[%clk 0:03:00.3]}
2... e6 {[%clk 0:03:01.8]} 3. d4 {[%clk 0:02:59.7]} 3... cxd4 {[%clk 0:03:02.7]}
4. Nxd4 {[%clk 0:02:58.7]} 4... a6 {[%clk 0:03:03.2]} 5. Bd3 {[%clk 0:02:57.8]}
5... Nc6 {[%clk 0:03:02.6]} 6. Be3 {[%clk 0:02:55.8]} 6... Nf6 {[%clk
0:03:00.1]} 7. O-O {[%clk 0:02:54.5]} 7... Qc7 {[%clk 0:03:00.6]} 8. c4 {[%clk
0:02:49.3]} 8... Bd6 {[%clk 0:02:57.6]} 9. h3 {[%clk 0:02:31]} 9... Bh2+ {[%clk
0:02:56.5]} 10. Kh1 {[%clk 0:02:30.5]} 10... Be5 {[%clk 0:02:57.4]} 11. Nxc6
{[%clk 0:02:22.3]} 11... dxc6 {[%clk 0:02:53.8]} 12. Nc3 {[%clk 0:02:21.3]}
12... Bf4 {[%clk 0:02:47.8]} 13. Qf3 {[%clk 0:02:17.5]} 13... Bxe3 {[%clk
0:02:46.3]} 14. Qxe3 {[%clk 0:02:17.9]} 14... e5 {[%clk 0:02:46.7]} 15. c5
{[%clk 0:01:54.5]} 15... Be6 {[%clk 0:02:45.5]} 16. Na4 {[%clk 0:01:47.9]} 16...
Rd8 {[%clk 0:02:43.7]} 17. Nb6 {[%clk 0:01:44.7]} 17... Rd4 {[%clk 0:02:41.6]}
18. Rad1 {[%clk 0:01:40.3]} 18... O-O {[%clk 0:02:40.5]} 19. Bc2 {[%clk
0:01:16.1]} 19... Rfd8 {[%clk 0:02:37.9]} 20. Rxd4 {[%clk 0:01:13.6]} 20... Rxd4
{[%clk 0:02:35.6]} 21. Rd1 {[%clk 0:01:12.7]} 21... Rxd1+ {[%clk 0:02:22.8]} 22.
Bxd1 {[%clk 0:01:13]} 22... Bxa2 {[%clk 0:02:11.1]} 23. Qd3 {[%clk 0:00:50]}
23... Be6 {[%clk 0:02:09.3]} 24. Nc4 {[%clk 0:00:41]} 24... Bxc4 {[%clk
0:02:07.1]} 25. Qxc4 {[%clk 0:00:41.1]} 25... Qd7 {[%clk 0:02:06.4]} 26. Bb3
{[%clk 0:00:40]} 26... g6 {[%clk 0:02:02.6]} 27. Kh2 {[%clk 0:00:38.8]} 27...
Kg7 {[%clk 0:02:01.9]} 28. Qc3 {[%clk 0:00:35.5]} 28... Qd4 {[%clk 0:01:57.6]}
29. Qxd4 {[%clk 0:00:30.7]} 29... exd4 {[%clk 0:01:58.5]} 30. e5 {[%clk
0:00:30.7]} 30... Nd7 {[%clk 0:01:57.9]} 31. f4 {[%clk 0:00:29.6]} 31... Nxc5
{[%clk 0:01:57.4]} 32. Bc4 {[%clk 0:00:29.6]} 32... b5 {[%clk 0:01:55.5]} 0-1

[Event "Early-Titled-Tuesday-Blitz-February-27-2024"]
[Site "Chess.com"]
[Date "2024.02.27"]
[Round "3"]
[White "ridnani1"]
[Black "DmitryMaximov"]
[Result "1/2-1/2"]
[WhiteElo "2411"]
[BlackElo "2779"]
[TimeControl "180+1"]
[EndTime "8:26:01 PST"]
[Termination "Game drawn by agreement"]

1. e4 {[%clk 0:03:00.9]} 1... c5 {[%clk 0:03:00]} 2. Nf3 {[%clk 0:03:00.8]} 2...
d6 {[%clk 0:03:00.6]} 3. d4 {[%clk 0:03:00.3]} 3... cxd4 {[%clk 0:03:01]} 4.
Qxd4 {[%clk 0:03:01.2]} 4... a6 {[%clk 0:03:00.8]} 5. c4 {[%clk 0:03:00.6]} 5...
Nc6 {[%clk 0:03:01.1]} 6. Qd1 {[%clk 0:02:59.9]} 6... Nf6 {[%clk 0:03:00.7]} 7.
Nc3 {[%clk 0:02:59]} 7... Bg4 {[%clk 0:03:00.2]} 8. Be3 {[%clk 0:02:51.7]} 8...
Rc8 {[%clk 0:02:59.2]} 9. b3 {[%clk 0:02:46.7]} 9... g6 {[%clk 0:02:58.8]} 10.
Qd2 {[%clk 0:02:39.2]} 10... Bg7 {[%clk 0:02:58.4]} 11. Nd4 {[%clk 0:02:39]}
11... O-O {[%clk 0:02:56.4]} 12. f3 {[%clk 0:02:36.9]} 12... Bd7 {[%clk
0:02:52]} 13. Be2 {[%clk 0:02:35.8]} 13... Re8 {[%clk 0:02:50.2]} 14. O-O {[%clk
0:02:34]} 14... h5 {[%clk 0:02:48.5]} 15. Rac1 {[%clk 0:02:32.3]} 15... Ne5
{[%clk 0:02:48.1]} 16. h3 {[%clk 0:02:29.5]} 16... Qa5 {[%clk 0:02:43.4]} 17.
Nd5 {[%clk 0:02:15.8]} 17... Qxd2 {[%clk 0:02:37.7]} 18. Bxd2 {[%clk 0:02:16.7]}
18... Nxd5 {[%clk 0:02:35.3]} 19. cxd5 {[%clk 0:02:13]} 19... Nc4 {[%clk
0:02:27.5]} 20. Rxc4 {[%clk 0:02:09.9]} 20... Rxc4 {[%clk 0:02:27.1]} 21. Bxc4
{[%clk 0:02:10.4]} 21... Bxd4+ {[%clk 0:02:27.4]} 22. Kh2 {[%clk 0:02:09.2]}
22... Rc8 {[%clk 0:02:26.5]} 23. Rc1 {[%clk 0:02:04.4]} 23... Kg7 {[%clk
0:02:17.7]} 24. Bd3 {[%clk 0:02:02.3]} 24... Rxc1 {[%clk 0:02:16.8]} 25. Bxc1
{[%clk 0:02:03.2]} 25... Kf6 {[%clk 0:02:06]} 26. Kg3 {[%clk 0:01:58.6]} 26...
Bc3 {[%clk 0:02:01.4]} 27. f4 {[%clk 0:01:56.9]} 27... e6 {[%clk 0:01:55.2]} 28.
dxe6 {[%clk 0:01:54.9]} 28... Bxe6 {[%clk 0:01:55.4]} 29. Kf3 {[%clk 0:01:49.7]}
29... b5 {[%clk 0:01:52.1]} 30. g4 {[%clk 0:01:46.7]} 30... hxg4+ {[%clk
0:01:52]} 31. hxg4 {[%clk 0:01:47.6]} 31... Bd7 {[%clk 0:01:48.2]} 32. g5+
{[%clk 0:01:37.2]} 32... Ke7 {[%clk 0:01:48.5]} 33. f5 {[%clk 0:01:38.1]} 33...
Be5 {[%clk 0:01:41]} 34. Bf4 {[%clk 0:01:31.9]} 34... a5 {[%clk 0:01:38.8]} 35.
Bxe5 {[%clk 0:01:22.2]} 35... dxe5 {[%clk 0:01:39.1]} 36. fxg6 {[%clk
0:01:22.7]} 36... fxg6 {[%clk 0:01:39.1]} 37. a3 {[%clk 0:01:23]} 37... Bc6
{[%clk 0:01:38.2]} 38. b4 {[%clk 0:01:20]} 38... Kd6 {[%clk 0:01:30.4]} 39. Ke3
{[%clk 0:01:02.4]} 39... axb4 {[%clk 0:01:26.1]} 40. axb4 {[%clk 0:01:02.2]}
40... Bd7 {[%clk 0:01:26.7]} 41. Kf3 {[%clk 0:00:58.2]} 1/2-1/2

[Event "Early-Titled-Tuesday-Blitz-February-27-2024"]
[Site "Chess.com"]
[Date "2024.02.27"]
[Round "3"]
[White "VladimirBugayev"]
[Black "oneshot007"]
[Result "0-1"]
[WhiteElo "2224"]
[BlackElo "2436"]
[TimeControl "180+1"]
[EndTime "8:26:09 PST"]
[Termination "oneshot007 won by resignation"]

1. e4 {[%clk 0:03:00.9]} 1... c5 {[%clk 0:02:58]} 2. Nc3 {[%clk 0:02:59.8]} 2...
Nc6 {[%clk 0:02:54.4]} 3. Bb5 {[%clk 0:03:00.2]} 3... Nd4 {[%clk 0:02:54.1]} 4.
Nf3 {[%clk 0:03:00.5]} 4... a6 {[%clk 0:02:53.6]} 5. Bd3 {[%clk 0:02:59.9]} 5...
e6 {[%clk 0:02:54]} 6. O-O {[%clk 0:02:56.9]} 6... Nc6 {[%clk 0:02:53.6]} 7. e5
{[%clk 0:02:47]} 7... f5 {[%clk 0:02:36.6]} 8. a4 {[%clk 0:02:33.5]} 8... g5
{[%clk 0:02:08.8]} 9. Kh1 {[%clk 0:02:33.4]} 9... Bg7 {[%clk 0:02:03.7]} 10. Bc4
{[%clk 0:02:25.8]} 10... g4 {[%clk 0:01:57.6]} 11. d4 {[%clk 0:02:25.8]} 11...
gxf3 {[%clk 0:01:53.6]} 12. Qxf3 {[%clk 0:02:25.5]} 12... cxd4 {[%clk
0:01:51.2]} 13. Qh5+ {[%clk 0:02:25.4]} 13... Kf8 {[%clk 0:01:50.5]} 14. b3
{[%clk 0:02:05.3]} 14... Nxe5 {[%clk 0:01:50.1]} 15. Bxe6 {[%clk 0:01:58.3]}
15... dxe6 {[%clk 0:01:40.4]} 16. Ba3+ {[%clk 0:01:57.4]} 16... Ne7 {[%clk
0:01:41]} 17. f4 {[%clk 0:01:47.1]} 17... Ng6 {[%clk 0:01:38.7]} 18. Ne4 {[%clk
0:01:45.5]} 18... fxe4 {[%clk 0:01:31.4]} 19. f5 {[%clk 0:01:41.2]} 19... exf5
{[%clk 0:01:31.7]} 20. g4 {[%clk 0:01:24]} 20... f4 {[%clk 0:01:26.1]} 21. Rxf4+
{[%clk 0:01:20]} 21... Nxf4 {[%clk 0:01:25.9]} 22. Rf1 {[%clk 0:01:20.8]} 22...
Kg8 {[%clk 0:01:04.8]} 23. Rxf4 {[%clk 0:01:15.6]} 23... Be6 {[%clk 0:01:05.1]}
24. Qg5 {[%clk 0:01:10.4]} 24... Ng6 {[%clk 0:01:03.2]} 0-1

[Event "Early-Titled-Tuesday-Blitz-February-27-2024"]
[Site "Chess.com"]
[Date "2024.02.27"]
[Round "3"]
[White "db-banana"]
[Black "ArtemDyachuk"]
[Result "0-1"]
[WhiteElo "2480"]
[BlackElo "2694"]
[TimeControl "180+1"]
[EndTime "8:26:11 PST"]
[Termination "ArtemDyachuk won by resignation"]

1. e4 {[%clk 0:03:00.9]} 1... c5 {[%clk 0:02:59.6]} 2. Nf3 {[%clk 0:03:00.7]}
2... d6 {[%clk 0:02:59.9]} 3. d3 {[%clk 0:03:00.5]} 3... g6 {[%clk 0:02:57.8]}
4. g3 {[%clk 0:03:01]} 4... Bg7 {[%clk 0:02:57.8]} 5. Bg2 {[%clk 0:03:01.6]}
5... Nc6 {[%clk 0:02:58.4]} 6. O-O {[%clk 0:03:02]} 6... Nf6 {[%clk 0:02:58]} 7.
c3 {[%clk 0:03:02.3]} 7... O-O {[%clk 0:02:57.2]} 8. Re1 {[%clk 0:03:02.4]} 8...
e5 {[%clk 0:02:56]} 9. a4 {[%clk 0:02:44.8]} 9... b6 {[%clk 0:02:55.3]} 10. Na3
{[%clk 0:02:44.2]} 10... d5 {[%clk 0:02:52.9]} 11. exd5 {[%clk 0:02:42.7]} 11...
Nxd5 {[%clk 0:02:53.8]} 12. Nc4 {[%clk 0:02:41]} 12... Re8 {[%clk 0:02:53.3]}
13. Bg5 {[%clk 0:02:38.2]} 13... f6 {[%clk 0:02:52]} 14. Bd2 {[%clk 0:02:34.3]}
14... Be6 {[%clk 0:02:51.1]} 15. Ne3 {[%clk 0:02:23.6]} 15... Qd7 {[%clk
0:02:48.9]} 16. Nxd5 {[%clk 0:02:23.2]} 16... Bxd5 {[%clk 0:02:48.7]} 17. b4
{[%clk 0:02:20]} 17... cxb4 {[%clk 0:02:47.9]} 18. cxb4 {[%clk 0:02:19.9]} 18...
Rad8 {[%clk 0:02:48.2]} 19. b5 {[%clk 0:02:14.9]} 19... Ne7 {[%clk 0:02:47.3]}
20. Bb4 {[%clk 0:01:55.9]} 20... Nf5 {[%clk 0:02:43.6]} 21. Bh3 {[%clk
0:01:49.2]} 21... Qb7 {[%clk 0:02:41.4]} 22. Nd2 {[%clk 0:01:28.6]} 22... Nd4
{[%clk 0:02:40.4]} 23. Bc3 {[%clk 0:01:00.5]} 23... Bf3 {[%clk 0:02:39.1]} 24.
Qb1 {[%clk 0:00:34.6]} 24... Ne2+ {[%clk 0:02:38.1]} 25. Rxe2 {[%clk 0:00:34.8]}
25... Bxe2 {[%clk 0:02:39]} 26. Bg2 {[%clk 0:00:33.9]} 26... Qd7 {[%clk
0:02:38.4]} 27. Bc6 {[%clk 0:00:25.5]} 27... Qf5 {[%clk 0:02:29.7]} 28. Bxe8
{[%clk 0:00:22]} 28... Rxe8 {[%clk 0:02:30.6]} 29. Ne4 {[%clk 0:00:21]} 29...
Bf3 {[%clk 0:02:28.7]} 30. Nd6 {[%clk 0:00:18.9]} 30... Qh3 {[%clk 0:02:28.2]}
31. Qa2+ {[%clk 0:00:15.8]} 31... Re6 {[%clk 0:02:27]} 32. Qxe6+ {[%clk
0:00:12.5]} 32... Qxe6 {[%clk 0:02:26.1]} 33. Nc4 {[%clk 0:00:10.3]} 33... Qh3
{[%clk 0:02:23.7]} 34. Ne3 {[%clk 0:00:11]} 34... Bh6 {[%clk 0:02:23.6]} 35. Ra2
{[%clk 0:00:11.7]} 35... Qe6 {[%clk 0:02:19.7]} 36. Rd2 {[%clk 0:00:10.3]} 36...
f5 {[%clk 0:02:18.9]} 37. d4 {[%clk 0:00:10.4]} 37... exd4 {[%clk 0:02:17.7]}
38. Bxd4 {[%clk 0:00:09.9]} 38... f4 {[%clk 0:02:17.5]} 39. Bb2 {[%clk
0:00:03.1]} 39... fxe3 {[%clk 0:02:17]} 40. Rd8+ {[%clk 0:00:03.1]} 0-1

[Event "Early-Titled-Tuesday-Blitz-February-27-2024"]
[Site "Chess.com"]
[Date "2024.02.27"]
[Round "3"]
[White "leclash"]
[Black "dorpato"]
[Result "1-0"]
[WhiteElo "2398"]
[BlackElo "2108"]
[TimeControl "180+1"]
[EndTime "8:26:13 PST"]
[Termination "leclash won by resignation"]

1. d4 {[%clk 0:03:00.9]} 1... Nf6 {[%clk 0:02:53.5]} 2. c4 {[%clk 0:03:00.5]}
2... g6 {[%clk 0:02:42]} 3. Nc3 {[%clk 0:02:59.9]} 3... d5 {[%clk 0:02:42.4]} 4.
h4 {[%clk 0:02:59.1]} 4... h5 {[%clk 0:02:38.3]} 5. Bf4 {[%clk 0:02:53.5]} 5...
b6 {[%clk 0:02:33.8]} 6. e3 {[%clk 0:02:51.7]} 6... Bb7 {[%clk 0:01:08]} 7. Nf3
{[%clk 0:02:41.5]} 7... Bg7 {[%clk 0:01:06.2]} 8. Rc1 {[%clk 0:01:52.9]} 8...
O-O {[%clk 0:00:47.7]} 9. cxd5 {[%clk 0:01:49.7]} 9... Nxd5 {[%clk 0:00:33.1]}
10. Nxd5 {[%clk 0:01:49.4]} 10... Qxd5 {[%clk 0:00:33.2]} 11. Rxc7 {[%clk
0:01:34.7]} 11... e6 {[%clk 0:00:19.4]} 12. Bc4 {[%clk 0:01:27.1]} 12... Qa5+
{[%clk 0:00:18.7]} 13. Qd2 {[%clk 0:01:27]} 13... Bxf3 {[%clk 0:00:16]} 14. Qxa5
{[%clk 0:01:24.9]} 14... bxa5 {[%clk 0:00:14.9]} 15. gxf3 {[%clk 0:01:24.8]}
15... Kh8 {[%clk 0:00:12.7]} 16. Ke2 {[%clk 0:01:23.5]} 16... Kh7 {[%clk
0:00:10.5]} 17. Bd3 {[%clk 0:01:17.9]} 17... Kg8 {[%clk 0:00:09.7]} 18. Be4
{[%clk 0:01:17.7]} 1-0

[Event "Early-Titled-Tuesday-Blitz-February-27-2024"]
[Site "Chess.com"]
[Date "2024.02.27"]
[Round "3"]
[White "urano56"]
[Black "santosalberto1987"]
[Result "1-0"]
[WhiteElo "2331"]
[BlackElo "2556"]
[TimeControl "180+1"]
[EndTime "8:26:18 PST"]
[Termination "urano56 won by resignation"]

1. e4 {[%clk 0:02:54.6]} 1... e6 {[%clk 0:02:58.2]} 2. d4 {[%clk 0:02:54]} 2...
d5 {[%clk 0:02:54]} 3. Nc3 {[%clk 0:02:54.1]} 3... Nf6 {[%clk 0:02:54]} 4. e5
{[%clk 0:02:49.1]} 4... Nfd7 {[%clk 0:02:54.2]} 5. f4 {[%clk 0:02:48]} 5... c5
{[%clk 0:02:54.3]} 6. Nf3 {[%clk 0:02:47.6]} 6... Nc6 {[%clk 0:02:54.9]} 7. Be3
{[%clk 0:02:47.1]} 7... Qb6 {[%clk 0:02:55.4]} 8. Qd2 {[%clk 0:02:45.5]} 8...
Qxb2 {[%clk 0:02:55.3]} 9. Rb1 {[%clk 0:02:46.1]} 9... Qa3 {[%clk 0:02:55.6]}
10. Bb5 {[%clk 0:02:46.8]} 10... c4 {[%clk 0:02:55]} 11. Ne2 {[%clk 0:02:29.2]}
11... Qa5 {[%clk 0:02:50.5]} 12. c3 {[%clk 0:02:26.9]} 12... Be7 {[%clk
0:02:43.1]} 13. O-O {[%clk 0:02:24.9]} 13... O-O {[%clk 0:02:36.6]} 14. f5
{[%clk 0:02:25.1]} 14... exf5 {[%clk 0:02:35.2]} 15. Nf4 {[%clk 0:02:08.9]}
15... a6 {[%clk 0:02:34.6]} 16. Bxc6 {[%clk 0:02:01.9]} 16... bxc6 {[%clk
0:02:35.5]} 17. Nh5 {[%clk 0:02:01.7]} 17... g6 {[%clk 0:02:30.4]} 18. Ng3
{[%clk 0:01:59.1]} 18... Re8 {[%clk 0:02:27.4]} 19. Kh1 {[%clk 0:01:47.7]} 19...
Nf8 {[%clk 0:02:27.3]} 20. Rg1 {[%clk 0:01:45.2]} 20... Be6 {[%clk 0:02:20.2]}
21. Bh6 {[%clk 0:01:43]} 21... Rab8 {[%clk 0:02:19.5]} 22. Rbc1 {[%clk
0:01:36.4]} 22... Qa3 {[%clk 0:02:04.7]} 23. Rc2 {[%clk 0:01:34.7]} 23... Rb5
{[%clk 0:02:04.3]} 24. h4 {[%clk 0:01:16.5]} 24... Reb8 {[%clk 0:02:02.9]} 25.
h5 {[%clk 0:01:15.6]} 25... Rb2 {[%clk 0:01:57.5]} 26. hxg6 {[%clk 0:01:06.1]}
26... hxg6 {[%clk 0:01:49.6]} 27. Rgc1 {[%clk 0:01:03.2]} 27... Rxc2 {[%clk
0:01:48.6]} 28. Rxc2 {[%clk 0:01:04.1]} 28... Rb1+ {[%clk 0:01:41.3]} 29. Kh2
{[%clk 0:01:03.9]} 29... c5 {[%clk 0:01:34.4]} 30. dxc5 {[%clk 0:00:51.6]} 30...
Bxc5 {[%clk 0:01:32]} 31. Qg5 {[%clk 0:00:45.6]} 31... Rb2 {[%clk 0:01:25.2]}
32. Qf6 {[%clk 0:00:37.4]} 1-0

[Event "Early-Titled-Tuesday-Blitz-February-27-2024"]
[Site "Chess.com"]
[Date "2024.02.27"]
[Round "3"]
[White "Fighter008"]
[Black "Genghis_K"]
[Result "0-1"]
[WhiteElo "2530"]
[BlackElo "2941"]
[TimeControl "180+1"]
[EndTime "8:26:20 PST"]
[Termination "Genghis_K won by resignation"]

1. e4 {[%clk 0:02:58.4]} 1... c5 {[%clk 0:03:00.5]} 2. Nf3 {[%clk 0:02:57.7]}
2... d6 {[%clk 0:03:01.2]} 3. d4 {[%clk 0:02:57.6]} 3... cxd4 {[%clk 0:03:02.1]}
4. Nxd4 {[%clk 0:02:58.3]} 4... Nf6 {[%clk 0:03:02.7]} 5. Nc3 {[%clk 0:02:58.7]}
5... a6 {[%clk 0:03:03.3]} 6. Be3 {[%clk 0:02:58.8]} 6... Ng4 {[%clk 0:03:03]}
7. Bc1 {[%clk 0:02:58.4]} 7... Nc6 {[%clk 0:03:02.9]} 8. Nb3 {[%clk 0:02:45.3]}
8... e5 {[%clk 0:02:36.1]} 9. Be2 {[%clk 0:02:32.2]} 9... Nf6 {[%clk 0:02:35.4]}
10. Bg5 {[%clk 0:02:32.1]} 10... Be7 {[%clk 0:02:34]} 11. Qd2 {[%clk 0:02:29.1]}
11... O-O {[%clk 0:02:31.3]} 12. O-O-O {[%clk 0:02:24]} 12... Be6 {[%clk
0:02:23.6]} 13. f4 {[%clk 0:02:23.3]} 13... exf4 {[%clk 0:02:20.3]} 14. Bxf4
{[%clk 0:02:23.1]} 14... Ne5 {[%clk 0:02:19]} 15. Nd4 {[%clk 0:02:20.5]} 15...
Rc8 {[%clk 0:02:11.3]} 16. Nxe6 {[%clk 0:02:11.6]} 16... fxe6 {[%clk 0:02:12.2]}
17. Bxe5 {[%clk 0:02:11.6]} 17... dxe5 {[%clk 0:02:12.4]} 18. Qxd8 {[%clk
0:02:11.5]} 18... Rfxd8 {[%clk 0:02:07]} 19. Rxd8+ {[%clk 0:02:10.9]} 19... Bxd8
{[%clk 0:02:07.8]} 20. Rd1 {[%clk 0:02:05.3]} 20... Ba5 {[%clk 0:02:06.3]} 21.
Bf3 {[%clk 0:01:47]} 21... Bxc3 {[%clk 0:02:04.6]} 22. bxc3 {[%clk 0:01:47.9]}
22... Rxc3 {[%clk 0:02:04.2]} 23. Kb2 {[%clk 0:01:46.8]} 23... Rc6 {[%clk
0:01:59.2]} 24. Rd8+ {[%clk 0:01:43.1]} 24... Kf7 {[%clk 0:01:59.7]} 25. Rb8
{[%clk 0:01:43]} 25... Rc7 {[%clk 0:01:56.8]} 26. Rd8 {[%clk 0:01:31.8]} 26...
Ke7 {[%clk 0:01:55.1]} 27. Rd2 {[%clk 0:01:30.9]} 27... Nd7 {[%clk 0:01:53.6]}
28. a4 {[%clk 0:01:26.1]} 28... Rc4 {[%clk 0:01:50.2]} 29. Kb3 {[%clk 0:01:25]}
29... b5 {[%clk 0:01:42.4]} 30. axb5 {[%clk 0:01:22]} 30... axb5 {[%clk
0:01:43.3]} 31. Be2 {[%clk 0:00:47]} 31... Nc5+ {[%clk 0:01:42.5]} 32. Ka3
{[%clk 0:00:43.3]} 32... b4+ {[%clk 0:01:33.7]} 33. Kb2 {[%clk 0:00:42.9]} 33...
Rxe4 {[%clk 0:01:33.9]} 34. Bb5 {[%clk 0:00:41.8]} 34... Rd4 {[%clk 0:01:33]}
35. Re2 {[%clk 0:00:41.4]} 35... e4 {[%clk 0:01:30.9]} 36. c3 {[%clk 0:00:41.3]}
36... bxc3+ {[%clk 0:01:29.4]} 37. Kxc3 {[%clk 0:00:42.2]} 37... e5 {[%clk
0:01:29.9]} 38. Bc4 {[%clk 0:00:42.1]} 38... Na4+ {[%clk 0:01:29.8]} 39. Kb4
{[%clk 0:00:42.3]} 39... Nb6 {[%clk 0:01:29.4]} 40. Kc5 {[%clk 0:00:41.8]} 40...
Nxc4 {[%clk 0:01:29.1]} 0-1